fUSD/lending_fUSD_20240322
["ID","MTS","AMOUNT","RATE_DAILY","PERIOD"]
[320031963,1711090233727,-158.92,0.00021263,2]
[320031965,1711090233739,-509.99960307,0.00021287,2]
[320031968,1711090233750,-158.92,0.00021382,2]
[320031970,1711090233762,-158.92,0.00021501,2]
[320031972,1711090233772,-158.92,0.0002162,2]
[320031974,1711090233784,-266.26,0.00021741,2]
[320031977,1711090233796,-150.45234948,0.0002178,2]
[320031979,1711090233807,-5507.51645168,0.00021798,2]
[320031981,1711090233820,-960.0,0.00021799,2]
[320031984,1711090233832,-457.0,0.00021799,2]
[320031986,1711090233844,-536.0,0.00021799,2]
[320031988,1711090233855,-432.0,0.00021799,2]
[320031990,1711090233867,-205.34067673,0.00021799,2]
[320031993,1711090233885,-397.65932327,0.00021799,2]
[320031995,1711090233897,-176.73972641,0.00021799,2]
[320032007,1711090233998,-839.05227359,0.00021799,2]
[320032009,1711090234010,-568.53632937,0.00021799,2]
[320032012,1711090234025,-232.46367063,0.00021799,2]
[320032014,1711090234036,-358.0,0.00021799,2]
[320032017,1711090234049,-213.0,0.00021799,2]
[320032019,1711090234061,-670.24607004,0.00021799,2]
[320032021,1711090234075,-6109.77201971,0.00021799,2]
[320032024,1711090234087,-171.55287114,0.00021799,2]
[320032026,1711090234099,-3369.95280034,0.00021799,2]
[320032028,1711090234112,-330.37137038,0.00021799,2]
[320032030,1711090234124,-187.36723587,0.00021799,4]
[320032032,1711090234136,-361.09452133,0.00021799,2]
[320032034,1711090234148,-1045.0,0.00021799,2]
[320032037,1711090234160,-1013.14640098,0.00021799,2]
[320032039,1711090234172,-152.0,0.00021863,2]
[320032041,1711090234184,-167.0,0.00021863,2]
[320032043,1711090234197,-386.0,0.00021863,2]
[320032046,1711090234210,-234.032215,0.00021888,2]
[320032048,1711090234221,-345.032215,0.00021888,2]
[320032051,1711090234233,-22946.8159404,0.00021888,2]
[320032053,1711090234245,-151.032215,0.00021888,2]
[320032055,1711090234256,-676.43,0.0002189,3]
[320032057,1711090234267,-400.0,0.00021896,2]
[320032059,1711090234280,-226.80512302,0.00021897,2]
[320032060,1711090234291,-500.0,0.00021897,2]
[320032062,1711090234303,-300.0448418,0.00021897,2]
[320032064,1711090234316,-500.0,0.00021897,2]
[320032066,1711090234328,-162.15280732,0.00021897,2]
[320032068,1711090234340,-4346.18648862,0.00021898,2]
[320032070,1711090234352,-3856.22373393,0.00021898,2]
[320032072,1711090234364,-294423.57016636,0.00021898,2]
[320032075,1711090234391,-348.54599188,0.00021898,2]
[320032078,1711090234411,-36831.43248648,0.00021898,2]
[320032497,1711090240502,-298.89337591,0.00021898,2]
[320032498,1711090240568,-1762.03820633,0.00021898,2]
[320032499,1711090240631,-530.65821609,0.00021898,2]
[320032500,1711090243369,-28436.75686841,0.00021898,2]
[320032501,1711090243435,-540.16053151,0.00021898,2]
[320032502,1711090243447,-3724.46119812,0.00021898,2]
[320032503,1711090243615,-14077.97273119,0.00021898,2]
[320032534,1711090248693,-405.78230597,0.00021897,2]
[320032535,1711090248707,-12667.89820748,0.00021898,2]
[320032536,1711090282441,300.94248677,9e-05,2]
[320032537,1711090294459,626.20767481,0.0001,2]
[320032538,1711090319097,455.94511595,6.94e-05,2]
[320032539,1711090338187,1023668.51827373,0.0001,2]
[320032540,1711090352132,463604.48569938,0.0001,2]
[320032541,1711090352389,1297.58294839,0.00015,2]
[320032542,1711090376508,-613.80670772,0.00017979,2]
[320032543,1711090376544,-234.032215,0.00017998,2]
[320032544,1711090376577,-234.032215,0.00017998,2]
[320032545,1711090376611,-234.032215,0.00017998,2]
[320032546,1711090376644,-613.57766575,0.00017999,2]
[320032547,1711090376676,-336.10722834,0.00017999,5]
[320032548,1711090376713,-17513.81942763,0.00018,2]
[320032549,1711090376730,-613.80670772,0.00018,2]
[320032550,1711090376747,-234.032215,0.00018,2]
[320032551,1711090376759,-234.032215,0.00018,2]
[320032552,1711090376775,-234.032215,0.00018,2]
[320032553,1711090376792,-613.57766575,0.00018,2]
[320032554,1711090376805,-336.10722834,0.00018,2]
[320032555,1711090376821,-8955.00407875,0.00018,2]
[320032556,1711090402307,3696.76031889,0.0001305,2]
[320032557,1711090402647,241.2395241,0.000101,2]
[320032559,1711090432133,3335.75,0.00015,2]
[320032563,1711090460346,233.94407105,0.000135,2]
[320032564,1711090477333,207.72431522,0.0001,2]
[320032569,1711091326909,10000.0,0.00023221,60]
[320032572,1711091346538,10000.0,0.00023221,60]
[320032573,1711091353036,566.79,0.00016319,2]
[320032575,1711091365720,10000.0,0.00023221,60]
[320032577,1711091393583,10000.0,0.00023221,60]
[320032589,1711091432206,-455.95,0.00017779,2]
[320032592,1711091432215,-387.10458522,0.000178,2]
[320032593,1711091432270,-670.28116184,0.000178,2]
[320032594,1711091432282,-1926.7925768,0.000178,2]
[320032595,1711091432294,-21266.32679558,0.000178,2]
[320032596,1711091432348,-16160.65324369,0.000178,2]
[320032597,1711091432410,-11458.39233687,0.000178,2]
[320032598,1711091432420,-159.19209893,0.00017867,2]
[320032599,1711091432429,-46.02535238,0.00017899,2]
[320032600,1711091432442,-253.97464762,0.00017899,2]
[320032601,1711091432455,-1000.0,0.000179,2]
[320032602,1711091432465,-2948.70870028,0.000179,2]
[320032603,1711091432474,-68393.5472787,0.000179,2]
[320032604,1711091432576,-655.60712406,0.000179,2]
[320032605,1711091432588,-377.02920984,0.000179,2]
[320032606,1711091432647,-175573.8163874,0.000179,2]
[320032607,1711091432657,-159.19209893,0.000179,2]
[320032609,1711091432667,-65197.85815837,0.000179,2]
[320032611,1711091432677,-154.47563597,0.000179,2]
[320032612,1711091432686,-154.47563586,0.000179,2]
[320032614,1711091432695,-154.47563586,0.000179,2]
[320032616,1711091432705,-154.47563586,0.000179,2]
[320032618,1711091432715,-154.47563586,0.000179,2]
[320032620,1711091432724,-154.47563586,0.000179,2]
[320032622,1711091432734,-154.47563586,0.000179,2]
[320032624,1711091432743,-154.47563586,0.000179,2]
[320032625,1711091432753,-154.47563586,0.000179,2]
[320032627,1711091432762,-306.67002228,0.000179,2]
[320032629,1711091432771,-154.47563586,0.00017905,2]
[320032631,1711091432781,-154.47563586,0.00017917,2]
[320032633,1711091432790,-154.47563586,0.00017929,2]
[320032635,1711091432799,-154.47563586,0.0001794,2]
[320032637,1711091432808,-154.47563586,0.00017952,2]
[320032638,1711091432816,-154.47563586,0.00017964,2]
[320032639,1711091432826,-154.47563586,0.00017976,2]
[320032640,1711091432835,-154.47563586,0.00017987,2]
[320032641,1711091432844,-234.032215,0.00017998,2]
[320032643,1711091432853,-234.032215,0.00017998,2]
[320032645,1711091432863,-234.032215,0.00017998,2]
[320032647,1711091432872,-234.032215,0.00017998,2]
[320032649,1711091432881,-234.032215,0.00017998,2]
[320032651,1711091432890,-234.032215,0.00017998,2]
[320032652,1711091432900,-234.032215,0.00017998,2]
[320032654,1711091432909,-613.3058386,0.00017999,2]
[320032656,1711091432918,-240.7296809,0.00017999,2]
[320032658,1711091432928,-154.47563586,0.00017999,2]
[320032659,1711091432937,-728.94987838,0.00017999,2]
[320032660,1711091432946,-220.24758026,0.00017999,2]
[320032661,1711091432955,-92353.45441851,0.00018,2]
[320032662,1711091433587,-172611.01388019,0.00018,2]
[320032684,1711091438177,-424.88047589,0.00018,2]
[320032685,1711091438195,-537.9361095,0.00018,2]
[320032686,1711091438400,-41083.5925,0.00018,2]
[320032688,1711091439523,-422495.09926916,0.00018,2]
[320032689,1711091439937,-688.77387916,0.00018,2]
[320032694,1711091442760,-2948.78650311,0.00018,2]
[320032695,1711091442821,-357.55581003,0.00018,2]
[320032696,1711091442836,-345.30254868,0.00018,2]
[320032707,1711091445737,-989.90451894,0.00018,2]
[320032711,1711091791315,609.93,0.0001682,2]
[320032712,1711091900051,1374.08349083,0.0001682,2]
[320032713,1711092139539,1842.88,0.00017307,2]
[320032714,1711092145037,162.78,0.00017314,2]
[320032721,1711092261747,159.79,0.00017332,2]
[320032723,1711092286029,200.0,0.00017294,2]
[320032726,1711092315572,579.43,0.00015371,2]
[320032728,1711092397991,159.19209894,0.0001743,2]
[320032729,1711092399566,1000.0,0.00017292,2]
[320032730,1711092410688,262.29,0.00017356,2]
[320032731,1711092411652,523.71,0.00017356,2]
[320032747,1711092446029,2000.0,0.000164,30]
[320032749,1711092447325,2000.0,0.000192,30]
[320032750,1711092448690,2000.0,0.000219,30]
[320032760,1711092630218,168.15412934,0.00024,120]
[320032771,1711092631734,-842.98193496,0.00017504,2]
[320032772,1711092631746,-275.17644995,0.00017504,2]
[320032773,1711092631755,-223.6810904,0.00017505,2]
[320032774,1711092631802,-310.72742938,0.00017505,2]
[320032775,1711092631813,-250.0,0.00017508,2]
[320032776,1711092631823,-5551.86,0.00017508,2]
[320032777,1711092631835,-1228.25,0.00017508,2]
[320032778,1711092631844,-160.0,0.00017508,2]
[320032779,1711092631854,-250.0,0.00017512,2]
[320032780,1711092631863,-193.37,0.00017533,2]
[320032781,1711092631873,-3115.99259467,0.00017571,2]
[320032782,1711092631885,-530.91740533,0.00017571,2]
[320032783,1711092631894,-126.94599857,0.000176,2]
[320032784,1711092631927,-23.05400143,0.000176,2]
[320032785,1711092631936,-256.64257133,0.00017635,2]
[320032786,1711092632150,-322.78742867,0.00017635,2]
[320032787,1711092632174,-499.99,0.0001778,2]
[320032788,1711092632185,-44.89254632,0.000178,2]
[320032789,1711092632199,-2535.22756646,0.000178,2]
[320032790,1711092632208,-1036.61565731,0.00017898,2]
[320032791,1711092632233,-184.61599786,0.00017898,2]
[320032792,1711092632242,-264.13276101,0.00017898,2]
[320032793,1711092632284,-1071.35837695,0.00017898,2]
[320032803,1711092637826,-150.0,0.00017595,2]
[320032804,1711092637836,-1011.6646285,0.00017898,2]
[320032805,1711092637846,-2489.07284154,0.00017898,2]
[320032806,1711092637859,-4523.07634185,0.00017898,2]
[320032807,1711092637869,-1712.44988486,0.00017898,2]
[320032808,1711092638077,-2496.78533743,0.00017898,2]
[320032809,1711092638121,-633.42787339,0.00017898,2]
[320032810,1711092638130,-1000.0,0.00017899,2]
[320032811,1711092638140,-15220.21205037,0.000179,2]
[320032812,1711092638155,-36745.90615829,0.000179,2]
[320032813,1711092638190,-10002.46735972,0.000179,2]
[320032820,1711092642182,-3155.35163516,0.000179,2]
[320032829,1711092642755,-3761.45205951,0.000179,2]
[320032830,1711092642768,-12422.25276074,0.000179,2]
[320032831,1711092642780,-4554.09588583,0.000179,2]
[320032832,1711092642872,-1564.92762866,0.000179,2]
[320032837,1711092646013,-311.37144885,0.00017899,2]
[320032838,1711092646027,-434.06747442,0.00017899,2]
[320032839,1711092646037,-38.34185758,0.000179,2]
[320032867,1711092813307,529.32,0.00015944,2]
[320032868,1711092996462,250.0,0.00017493,2]
[320032869,1711093008938,250.0,0.00017493,2]
[320032870,1711093012411,157.93,0.00017488,2]
[320032871,1711093061278,818.5,0.00017497,2]
[320032872,1711093265890,502.85,0.000155,2]
[320032875,1711093313104,261.85,0.00017312,2]
[320032876,1711093329681,800.0,0.00017255,2]
[320032877,1711093459733,-613.80670772,0.00017544,2]
[320032878,1711093459761,-621.19910273,0.00017545,2]
[320032879,1711093459791,-200.0,0.00017597,2]
[320032880,1711093459819,-1676.3341,0.00017699,2]
[320032881,1711093459848,-160.76785748,0.000177,2]
[320032882,1711093459877,-2012.6469,0.000177,2]
[320032883,1711093471417,250.0,0.00017524,2]
[320032884,1711093475348,545.33,0.00017524,2]
[320032885,1711093503262,150.0,0.0001762,2]
[320032908,1711093675935,250.0,0.00017622,2]
[320032909,1711093686031,477.7,0.00015782,2]
[320032910,1711093728873,160.76785747,0.00017699,2]
[320032911,1711093752210,360.0,0.00017626,2]
[320032912,1711093816662,261.85,0.00017633,2]
[320032928,1711093831953,-323.64473252,0.00017729,2]
[320032929,1711093831962,-306.66841437,0.0001773,2]
[320032930,1711093831972,-613.3058386,0.00017798,2]
[320032931,1711093831982,-284.38164041,0.00017798,2]
[320032932,1711093831991,-603.57569566,0.00017799,2]
[320032933,1711093831999,-8627.3098,0.00017799,2]
[320032934,1711093832009,-274.6416,0.000178,2]
[320032935,1711093832018,-3537.6492,0.000178,2]
[320032936,1711093832028,-2310.59315547,0.000178,2]
[320032937,1711093832062,-1940.285,0.000178,2]
[320032938,1711093832075,-850.19694453,0.000178,2]
[320032939,1711093832085,-137062.1149,0.000178,2]
[320032940,1711093832095,-3000.0,0.000178,2]
[320032941,1711093832105,-3000.0,0.0001788,2]
[320032942,1711093832114,-184.90887628,0.000179,2]
[320032943,1711093832124,-76886.31246003,0.000179,2]
[320032944,1711093832134,-7634.35787573,0.000179,2]
[320032945,1711093832144,-225.74120646,0.000179,2]
[320032946,1711093832153,-250.88890917,0.000179,2]
[320032947,1711093832162,-3000.0,0.000179,2]
[320032948,1711093832171,-3000.0,0.000179,2]
[320032949,1711093832183,-3000.0,0.000179,2]
[320032950,1711093832194,-499.99,0.000179,2]
[320032951,1711093832204,-214.87821336,0.000179,2]
[320032952,1711093832212,-2257.6050987,0.000179,2]
[320032953,1711093832223,-738.25652984,0.000179,2]
[320032954,1711093832233,-3645.36497922,0.000179,2]
[320032955,1711093832242,-198.06093368,0.000179,2]
[320032956,1711093832252,-700.0,0.0001795,5]
[320032958,1711093832262,-3000.0,0.0001795,2]
[320032959,1711093832271,-156.49,0.00017968,2]
[320032960,1711093832281,-680.0,0.0001798,3]
[320032961,1711093832290,-174.47,0.00017991,2]
[320032962,1711093832300,-234.032215,0.00017998,2]
[320032963,1711093832309,-234.032215,0.00017998,2]
[320032965,1711093832319,-234.032215,0.00017998,2]
[320032966,1711093832328,-234.032215,0.00017998,2]
[320032967,1711093832337,-234.032215,0.00017998,2]
[320032968,1711093832347,-234.032216,0.00017998,2]
[320032969,1711093832357,-234.032216,0.00017998,2]
[320032970,1711093832366,-234.032216,0.00017998,2]
[320032971,1711093832375,-234.032216,0.00017998,2]
[320032972,1711093832385,-97647.23430771,0.00017999,2]
[320032974,1711093838019,-1558.38965711,0.00017999,2]
[320032975,1711093838077,-835.1932916,0.00017999,2]
[320032976,1711093838191,-29023.03506428,0.00017999,2]
[320032977,1711093838207,-216480.19151367,0.00018,2]
[320032978,1711093838217,-395788.85284237,0.00018,2]
[320032979,1711093838250,-265.432,0.00018,2]
[320032980,1711093838308,-2309.28934368,0.00018,2]
[320032981,1711093838836,10129.57191598,0.00017509,2]
[320032993,1711093840313,-352.96999999,0.00018,2]
[320032994,1711093840326,-1441.69067328,0.00018,2]
[320032997,1711093842977,-627.2538819,0.000179,2]
[320032998,1711093842987,-2393.13942967,0.00018,2]
[320033002,1711093864850,451.80759871,0.00016918,2]
[320033032,1711094066861,2000.0,0.000164,30]
[320033034,1711094068210,2000.0,0.000192,30]
[320033036,1711094069529,2000.0,0.000219,30]
[320033044,1711094108093,499.76,0.00016951,2]
[320033045,1711094160225,5421.04711327,0.00025005,120]
[320033049,1711094407771,-250.0,0.00017727,2]
[320033050,1711094407800,-202.79370725,0.00017798,2]
[320033051,1711094407828,-198.92431824,0.00017798,2]
[320033052,1711094407856,-157534.9926,0.000178,2]
[320033053,1711094407884,-163.17830861,0.0001782,2]
[320033054,1711094407911,-3000.0,0.0001782,2]
[320033055,1711094407938,-712.0,0.00017827,2]
[320033056,1711094407970,-150.0,0.00017888,2]
[320033057,1711094407994,-177.54672834,0.000179,2]
[320033058,1711094408023,-2152.32082748,0.000179,2]
[320033059,1711094408051,-5607.23081221,0.000179,2]
[320033060,1711094408082,-7979.84800779,0.000179,2]
[320033061,1711094408113,-167.5899683,0.000179,2]
[320033062,1711094408144,-565.63991087,0.000179,2]
[320033063,1711094408179,-9899.74103235,0.000179,2]
[320033064,1711094408208,-182.9480091,0.000179,3]
[320033065,1711094408241,-661.29950832,0.00017999,2]
[320033066,1711094408270,-258.95434691,0.00017999,2]
[320033067,1711094408300,-150.01,0.00017999,2]
[320033068,1711094408328,-1251.22798763,0.00017999,2]
[320033069,1711094408357,-499.99,0.00017999,2]
[320033070,1711094408387,-589645.7639266,0.00018,2]
[320033071,1711094426607,2000.0,0.000164,30]
[320033072,1711094427836,2000.0,0.000192,30]
[320033073,1711094429484,2000.0,0.000219,30]
[320033074,1711094432262,3587.0,0.00017,2]
[320033075,1711094448652,166580.13237014,0.00017,2]
[320033078,1711094524232,-300.0,0.000169,6]
[320033079,1711094524259,-255.3515169,0.00016998,2]
[320033080,1711094524284,-1089.60016758,0.00016998,7]
[320033081,1711094524309,-485.0712318,0.00016998,2]
[320033082,1711094524334,-558.20615495,0.00016998,2]
[320033083,1711094524363,-323.64473252,0.00016999,2]
[320033084,1711094524395,-23816.12619625,0.00017,2]
[320033085,1711094759549,-1089.60016758,0.00015828,7]
[320033086,1711094759570,-323.64473252,0.00015829,2]
[320033087,1711094759590,-496.96,0.00015832,2]
[320033088,1711094759610,-180.35,0.00016426,2]
[320033089,1711094759629,-430.4,0.00016471,2]
[320033090,1711094759651,-555.94,0.00016537,2]
[320033091,1711094759858,-248.88,0.00016624,2]
[320033092,1711094759878,-160.46296261,0.00016899,2]
[320033093,1711094759901,-70219.5133,0.000169,2]
[320033094,1711094759921,-2142.20534871,0.00016945,2]
[320033095,1711094759941,-150.0,0.00016998,2]
[320033096,1711094759961,-150.0,0.00016998,2]
[320033097,1711094759982,-7202.04348858,0.00016999,2]
[320033130,1711095032104,-567.68168731,0.00016251,7]
[320033132,1711095032114,-323.64473252,0.00016251,2]
[320033134,1711095032124,-294.62648491,0.00016252,2]
[320033135,1711095032133,-455.68981175,0.00016254,2]
[320033136,1711095032165,-476.73648322,0.00016254,2]
[320033137,1711095032231,-10404.45796593,0.00016254,2]
[320033138,1711095032241,-1308.28,0.00016255,2]
[320033139,1711095032251,-2751.0,0.00016255,2]
[320033140,1711095032260,-500.0,0.00016255,2]
[320033141,1711095032270,-2812.39,0.00016255,2]
[320033142,1711095032279,-1694.02,0.00016255,2]
[320033143,1711095032289,-250.0,0.00016333,2]
[320033144,1711095032298,-2838.83,0.00016374,2]
[320033145,1711095032308,-2404.67,0.00016412,2]
[320033146,1711095032317,-1888.68,0.00016449,2]
[320033147,1711095032327,-169.14,0.00016633,2]
[320033148,1711095032336,-10105.9,0.00016706,2]
[320033149,1711095032346,-300.0,0.000168,6]
[320033150,1711095032355,-600.0,0.000169,6]
[320033151,1711095032365,-1874.42968013,0.00016945,2]
[320033152,1711095032374,-2303.7298013,0.00016983,2]
[320033153,1711095032383,-559.38958846,0.00016998,2]
[320033154,1711095032393,-236.12991295,0.00016998,2]
[320033155,1711095032402,-12735.53788776,0.00016998,2]
[320033156,1711095032411,-531.3607183,0.00016998,2]
[320033157,1711095032421,-410.73389856,0.00016998,2]
[320033158,1711095032430,-295.43930576,0.00016998,2]
[320033159,1711095032439,-155.10768938,0.00016998,2]
[320033160,1711095032448,-5351.89529938,0.00016998,2]
[320033161,1711095032458,-155.24217426,0.00016998,2]
[320033162,1711095032467,-1053.4426883,0.00016998,2]
[320033163,1711095032476,-155.67818031,0.00016998,2]
[320033164,1711095032487,-232.24488016,0.00016998,2]
[320033165,1711095032497,-235.74681985,0.00016998,2]
[320033166,1711095032506,-262.79918618,0.00016998,2]
[320033167,1711095032516,-373.8809731,0.00016998,2]
[320033168,1711095032530,-778.12509407,0.00016998,2]
[320033169,1711095032540,-155.27114015,0.00016998,2]
[320033170,1711095032550,-2372.36191682,0.00016999,2]
[320033173,1711095032729,-7672.53278783,0.00016999,2]
[320033175,1711095032744,-281557.36484341,0.00016999,2]
[320033179,1711095033195,-5895.55283556,0.00016999,2]
[320033180,1711095033207,-3473.25986075,0.00016999,2]
[320033181,1711095033230,-3492.08607007,0.00016999,2]
[320033182,1711095033251,-879.865,0.00016999,2]
[320033183,1711095033295,-459.44,0.00016999,2]
[320033184,1711095033307,-875.0,0.00016999,2]
[320033185,1711095033319,-623.27649731,0.00016999,2]
[320033186,1711095033330,-1064.46441939,0.00016999,2]
[320033187,1711095033362,-4102.21577376,0.00016999,2]
[320033188,1711095033386,-479.3635473,0.00016999,2]
[320033195,1711095038047,-766.64145195,0.00016999,2]
[320033197,1711095038107,-386.782,0.00016999,2]
[320033198,1711095038343,-384345.50175444,0.00016999,2]
[320033199,1711095038403,-13055.54597971,0.00016999,2]
[320033201,1711095038687,505.94,0.00014909,2]
[320033209,1711095040466,-522.56356493,0.00016999,2]
[320033210,1711095040521,-777.9999999,0.00016999,2]
[320033219,1711095043099,-319.609994,0.00016999,2]
[320033220,1711095043111,-408.0700003,0.00016999,2]
[320033221,1711095043124,-100177.34220297,0.00016999,2]
[320033222,1711095043158,-3031.47297332,0.00016999,2]
[320033223,1711095043171,-15309.63062078,0.00016999,2]
[320033224,1711095043183,-1477.88493041,0.00016999,2]
[320033232,1711095043718,-5187.76670095,0.00016999,2]
[320033233,1711095043731,-7793.26439941,0.00016999,2]
[320033234,1711095043802,-205.93501235,0.00016998,2]
[320033235,1711095043811,-194.36980716,0.00016999,2]
[320033236,1711095043826,-775.37099461,0.00016999,2]
[320033237,1711095043837,-500.0,0.00016999,2]
[320033238,1711095043857,-9541.2862001,0.00016999,2]
[320033254,1711095046219,-294.62648491,0.00016998,2]
[320033255,1711095046229,-242.36418207,0.00016999,2]
[320033256,1711095046423,-175953.16166917,0.00016999,2]
[320033257,1711095046433,-155.56,0.00017046,2]
[320033258,1711095046442,-250.0,0.00017046,2]
[320033259,1711095046453,-155.56,0.00017117,2]
[320033260,1711095046462,-505.94,0.00017173,2]
[320033261,1711095046471,-155.56,0.00017188,2]
[320033262,1711095046480,-180.5929652,0.0001723,2]
[320033263,1711095046490,-155.56,0.00017259,2]
[320033264,1711095046499,-6658.15,0.00017309,2]
[320033265,1711095046509,-339.72,0.00017309,2]
[320033266,1711095046518,-93426.81,0.00017311,2]
[320033267,1711095046530,-155.56,0.0001733,2]
[320033268,1711095046541,-160.46296261,0.000174,2]
[320033269,1711095046550,-155.56,0.00017401,2]
[320033270,1711095046559,-155.56,0.00017472,2]
[320033271,1711095046570,-1634.39,0.00017507,2]
[320033272,1711095046579,-155.56,0.00017543,2]
[320033273,1711095046589,-160.0,0.00017575,2]
[320033274,1711095046609,-155.56,0.00017614,2]
[320033275,1711095046629,-155.56,0.00017685,2]
[320033276,1711095046644,-1000.0,0.000177,6]
[320033277,1711095046663,-155.56,0.00017756,2]
[320033278,1711095046681,-1300.0,0.000178,6]
[320033279,1711095046697,-2576.27895,0.0001782,2]
[320033280,1711095046713,-155.56,0.00017827,2]
[320033281,1711095046731,-155.56,0.00017898,2]
[320033282,1711095046746,-160.46296261,0.000179,2]
[320033283,1711095046765,-199.05934807,0.000179,2]
[320033284,1711095046782,-1600.0,0.000179,6]
[320033285,1711095046798,-1120.93283086,0.000179,2]
[320033286,1711095046817,-3738.15387482,0.000179,2]
[320033287,1711095046839,-234.032216,0.00017998,2]
[320033288,1711095046851,-234.032216,0.00017998,2]
[320033289,1711095046867,-234.032216,0.00017998,2]
[320033290,1711095046883,-234.032216,0.00017998,2]
[320033291,1711095046899,-234.032216,0.00017998,2]
[320033292,1711095046911,-234.032216,0.00017998,2]
[320033293,1711095046930,-234.032216,0.00017998,2]
[320033294,1711095046945,-234.032216,0.00017998,2]
[320033295,1711095046960,-938.42099072,0.00017999,2]
[320033296,1711095046974,-250.0,0.00017999,2]
[320033297,1711095046988,-1000.0,0.00018,2]
[320033298,1711095047002,-497949.16550951,0.00018,2]
[320033299,1711095047068,-159651.76727334,0.00018,2]
[320033300,1711095047370,-130.66760883,0.00018,2]
[320033301,1711095048921,-4.3596695,0.00018,2]
[320033302,1711095048960,-1785.71342609,0.00018,2]
[320033304,1711095585380,-567.68168731,0.00016975,7]
[320033305,1711095585401,-323.64473252,0.00016976,2]
[320033306,1711095585422,-265.68120969,0.00016977,2]
[320033307,1711095612128,-155.31176019,0.00016998,2]
[320033308,1711095612149,-374.10506661,0.00016998,2]
[320033309,1711095612169,-4040.94434359,0.00016998,2]
[320033310,1711095612189,-598.86278884,0.00016998,2]
[320033311,1711095612209,-3673.76841125,0.00016998,2]
[320033317,1711096046676,2000.0,0.000164,30]
[320033318,1711096048014,2000.0,0.000192,30]
[320033319,1711096049334,2000.0,0.000219,30]
[320033324,1711096232802,-323.64473252,0.00015365,2]
[320033325,1711096232812,-567.68168731,0.00015365,7]
[320033326,1711096232821,-155.0,0.00015366,2]
[320033327,1711096232831,-40.36616271,0.0001537,2]
[320033328,1711096232843,-414.97383729,0.0001537,2]
[320033329,1711096232852,-249.54616271,0.00016998,2]
[320033330,1711096232864,-351.70999999,0.00016998,2]
[320033331,1711096232964,-1103.9339126,0.00016998,2]
[320033332,1711096232974,-257.97001115,0.00016998,2]
[320033333,1711096232983,-1280.02810159,0.00016998,2]
[320033334,1711096232996,-250.0,0.00017145,2]
[320033335,1711096233006,-655.68,0.00017243,2]
[320033336,1711096233016,-250.0,0.00017248,2]
[320033337,1711096233026,-871.51,0.00017249,2]
[320033338,1711096233035,-344.32,0.00017596,2]
[320033339,1711096233047,-455.34,0.00017633,2]
[320033340,1711096233058,-200.0,0.00017855,2]
[320033341,1711096233067,-800.0,0.00017855,2]
[320033342,1711096233077,-200.0,0.00017855,2]
[320033343,1711096233087,-4.86662648,0.00017855,2]
[320033344,1711096233098,-495.13337352,0.00017855,2]
[320033345,1711096233109,-29.88352721,0.00017855,2]
[320033346,1711096233412,-170.11647279,0.00017855,2]
[320033347,1711096233422,-200.0,0.00017856,2]
[320033348,1711096233432,-200.0,0.00017856,2]
[320033349,1711096233441,-119.18594129,0.00017856,2]
[320033350,1711096233454,-680.81405871,0.00017856,2]
[320033351,1711096233463,-800.0,0.00017856,2]
[320033352,1711096233472,-200.0,0.00017856,2]
[320033353,1711096233482,-200.0,0.00017856,2]
[320033354,1711096233491,-87.06106336,0.00017856,2]
[320033355,1711096233504,-412.93893664,0.00017856,2]
[320033356,1711096233514,-200.0,0.00017856,2]
[320033357,1711096233523,-5127.59664397,0.000179,2]
[320033358,1711096233559,-936.90400619,0.000179,2]
[320033359,1711096233570,-761.75219466,0.000179,2]